fUST/lending_fUST_20260117
["ID","MTS","AMOUNT","RATE_DAILY","PERIOD"]
[402273055,1768641059492,-784.75,0.0001726,3]
[402273057,1768641059501,-500.0,0.0001726,3]
[402273059,1768641059510,-500.0,0.0001726,3]
[402273061,1768641059519,-500.0,0.0001726,3]
[402273063,1768641059528,-500.0,0.0001726,3]
[402273065,1768641059538,-1670.51,0.0001726,3]
[402273067,1768641059547,-1717.32,0.0001726,3]
[402273069,1768641059556,-563.69,0.0001726,3]
[402273071,1768641059565,-500.0,0.0001726,3]
[402273073,1768641059574,-500.0,0.0001726,3]
[402273075,1768641059583,-500.0,0.0001726,3]
[402273077,1768641059592,-834.37,0.0001726,3]
[402273079,1768641059601,-500.0,0.0001726,3]
[402273081,1768641059611,-913.11,0.0001726,3]
[402273083,1768641059620,-500.0,0.0001726,3]
[402273085,1768641059629,-500.0,0.0001726,3]
[402273087,1768641059638,-939.73,0.0001726,3]
[402273089,1768641059647,-500.0,0.0001726,3]
[402273091,1768641059657,-500.0,0.0001726,3]
[402273093,1768641059666,-1044.14,0.0001726,3]
[402273095,1768641059675,-722.95,0.0001726,3]
[402273097,1768641059684,-154.03719813,0.0001726,3]
[402273099,1768641059694,-871.59,0.0001726,3]
[402273101,1768641059703,-721.62,0.0001726,3]
[402273103,1768641059712,-500.0,0.0001726,3]
[402273105,1768641059721,-500.0,0.0001726,3]
[402273106,1768641059730,-500.0,0.0001726,3]
[402273108,1768641059740,-568.79,0.0001726,3]
[402273110,1768641059749,-500.0,0.0001726,3]
[402273112,1768641059758,-1451.63,0.0001726,3]
[402273114,1768641059767,-500.0,0.0001726,3]
[402273116,1768641059776,-1081.34,0.0001726,3]
[402273118,1768641059786,-518.59,0.0001726,3]
[402273120,1768641059795,-500.0,0.0001726,3]
[402273122,1768641059804,-567.25,0.0001726,3]
[402273124,1768641059813,-500.0,0.0001726,3]
[402273126,1768641059825,-1177.76,0.0001726,3]
[402273128,1768641059834,-158.66112729,0.0001726,3]
[402273130,1768641059843,-1622.28,0.0001726,3]
[402273132,1768641059852,-700.32,0.0001726,3]
[402273133,1768641059862,-500.0,0.0001726,3]
[402273135,1768641059871,-500.0,0.0001726,3]
[402273137,1768641059881,-533.25,0.0001726,3]
[402273139,1768641059890,-1431.76,0.0001726,3]
[402273141,1768641059899,-500.0,0.0001726,3]
[402273143,1768641059909,-1412.19,0.0001726,3]
[402273145,1768641059917,-500.0,0.0001726,3]
[402273147,1768641059927,-2815.19,0.0001726,3]
[402273149,1768641059936,-617.92,0.0001726,3]
[402273151,1768641059947,-501.51,0.0001726,3]
[402273153,1768641059957,-500.0,0.0001726,3]
[402273155,1768641059966,-581.87,0.0001726,3]
[402273157,1768641059976,-2677.48,0.0001726,3]
[402273159,1768641059986,-630.14,0.0001726,3]
[402273161,1768641059995,-224.22753916,0.0001726,3]
[402273163,1768641060005,-1255.88,0.0001726,3]
[402273165,1768641060014,-480.06845953,0.0001726,3]
[402273167,1768641060024,-1456.0,0.0001726,3]
[402273168,1768641060033,-552.83,0.0001726,3]
[402273170,1768641060043,-500.0,0.0001726,3]
[402273172,1768641060052,-500.0,0.0001726,3]
[402273174,1768641060061,-577.84,0.0001726,3]
[402273176,1768641060071,-638.34,0.0001726,3]
[402273178,1768641060081,-722.98,0.0001726,3]
[402273180,1768641060091,-1559.59,0.0001726,3]
[402273182,1768641060101,-500.0,0.0001726,3]
[402273184,1768641060111,-500.0,0.0001726,3]
[402273186,1768641060121,-500.0,0.0001726,3]
[402273188,1768641060130,-8441.37,0.0001726,3]
[402273189,1768641060139,-500.0,0.0001726,3]
[402273191,1768641060150,-500.0,0.0001726,3]
[402273193,1768641060160,-500.0,0.0001726,3]
[402273195,1768641060169,-500.0,0.0001726,3]
[402273197,1768641060183,-529.66608909,0.0001726,3]
[402273199,1768641060193,-500.0,0.0001726,3]
[402273201,1768641060203,-921.27,0.0001726,3]
[402273203,1768641060213,-500.0,0.0001726,3]
[402273204,1768641060226,-538.55531083,0.0001726,3]
[402273206,1768641060235,-1326.69,0.0001726,3]
[402273208,1768641060245,-645.09,0.0001726,3]
[402273210,1768641060254,-953.59,0.0001726,3]
[402273212,1768641060263,-500.0,0.0001726,3]
[402273214,1768641060272,-500.0,0.0001726,3]
[402273216,1768641060281,-500.0,0.0001726,3]
[402273218,1768641060291,-828.55,0.0001726,3]
[402273220,1768641060300,-500.0,0.0001726,3]
[402273221,1768641060309,-529.21482368,0.0001726,3]
[402273223,1768641060318,-500.0,0.0001726,3]
[402273225,1768641060327,-1106.71,0.0001726,3]
[402273226,1768641060336,-500.0,0.0001726,3]
[402273227,1768641060346,-500.0,0.0001726,3]
[402273228,1768641060355,-980.47,0.0001726,3]
[402273229,1768641060365,-693.9,0.0001726,3]
[402273230,1768641060375,-500.0,0.0001726,3]
[402273231,1768641060384,-500.0,0.0001726,3]
[402273232,1768641060394,-500.0,0.0001726,3]
[402273233,1768641060403,-1330.27,0.0001726,3]
[402273234,1768641060412,-782.18,0.0001726,3]
[402273235,1768641060421,-3211.22,0.0001726,3]
[402273236,1768641060431,-500.0,0.0001726,3]
[402273237,1768641060440,-1075.34,0.0001726,3]
[402273238,1768641060450,-822.95,0.0001726,3]
[402273239,1768641060459,-500.0,0.0001726,3]
[402273240,1768641060469,-500.0,0.0001726,3]
[402273241,1768641060478,-1025.56,0.0001726,3]
[402273242,1768641060487,-1088.19,0.0001726,3]
[402273243,1768641060497,-784.27,0.0001726,3]
[402273244,1768641060507,-1239.92,0.0001726,3]
[402273245,1768641060516,-500.0,0.0001726,3]
[402273246,1768641060525,-1186.93,0.0001726,3]
[402273247,1768641060535,-500.0,0.0001726,3]
[402273248,1768641060544,-500.0,0.0001726,3]
[402273249,1768641060553,-500.0,0.0001726,3]
[402273250,1768641060563,-1439.17,0.0001726,3]
[402273251,1768641060571,-500.0,0.0001726,3]
[402273252,1768641060580,-2039.45,0.0001726,3]
[402273253,1768641060590,-692.94,0.0001726,3]
[402273254,1768641060599,-659.07,0.0001726,3]
[402273255,1768641060609,-1613.1,0.0001726,3]
[402273256,1768641060618,-2331.89,0.0001726,3]
[402273257,1768641060627,-500.0,0.0001726,3]
[402273258,1768641060636,-500.0,0.0001726,3]
[402273260,1768641060645,-629.75777174,0.0001726,3]
[402273262,1768641060655,-500.0,0.0001726,3]
[402273264,1768641060664,-1806.23,0.0001726,3]
[402273266,1768641060673,-1957.0,0.0001726,3]
[402273268,1768641060684,-500.0,0.0001726,3]
[402273270,1768641060693,-1112.08,0.0001726,3]
[402273272,1768641060703,-500.0,0.0001726,3]
[402273274,1768641060712,-619.77,0.0001726,3]
[402273276,1768641060721,-1659.97,0.0001726,3]
[402273278,1768641060730,-500.0,0.0001726,3]
[402273280,1768641060739,-500.0,0.0001726,3]
[402273282,1768641060750,-500.0,0.0001726,3]
[402273284,1768641060760,-1530.01,0.0001726,3]
[402273286,1768641060769,-1089.71,0.0001726,3]
[402273288,1768641060778,-508.15,0.0001726,3]
[402273290,1768641060788,-500.0,0.0001726,3]
[402273292,1768641060798,-500.0,0.0001726,3]
[402273294,1768641060807,-500.0,0.0001726,3]
[402273296,1768641060817,-500.0,0.0001726,3]
[402273298,1768641060829,-274.62103674,0.0001726,3]
[402273300,1768641060839,-674.15,0.0001726,3]
[402273302,1768641060849,-1106.34,0.0001726,3]
[402273304,1768641060858,-500.0,0.0001726,3]
[402273306,1768641060868,-500.0,0.0001726,3]
[402273308,1768641060878,-733.19,0.0001726,3]
[402273310,1768641060887,-849.02,0.0001726,3]
[402273312,1768641060899,-500.0,0.0001726,3]
[402273314,1768641060909,-500.0,0.0001726,3]
[402273316,1768641060919,-972.38,0.0001726,3]
[402273318,1768641060938,-500.0,0.0001726,3]
[402273320,1768641060947,-863.5,0.0001726,3]
[402273322,1768641060956,-1628.03,0.0001726,3]
[402273324,1768641060966,-1072.76,0.0001726,3]
[402273326,1768641060975,-1506.77,0.0001726,3]
[402273328,1768641060984,-920.91,0.0001726,3]
[402273330,1768641060994,-500.0,0.0001726,3]
[402273332,1768641061003,-500.0,0.0001726,3]
[402273334,1768641061013,-500.0,0.0001726,3]
[402273336,1768641061022,-693.24,0.0001726,3]
[402273338,1768641061032,-641.28,0.0001726,3]
[402273340,1768641061042,-500.0,0.0001726,3]
[402273342,1768641061051,-871.62,0.0001726,3]
[402273344,1768641061061,-500.0,0.0001726,3]
[402273346,1768641061069,-1287.57,0.0001726,3]
[402273348,1768641061079,-1429.84,0.0001726,3]
[402273350,1768641061088,-1670.99,0.0001726,3]
[402273351,1768641061097,-1293.83,0.0001726,3]
[402273353,1768641061107,-500.0,0.0001726,3]
[402273355,1768641061116,-500.0,0.0001726,3]
[402273357,1768641061125,-500.0,0.0001726,2]
[402273359,1768641061135,-683.46,0.0001726,3]
[402273361,1768641061144,-500.0,0.0001726,3]
[402273363,1768641061154,-373.35643664,0.00017261,2]
[402273365,1768641061163,-667.06,0.00017273,3]
[402273367,1768641061172,-500.0,0.00017273,3]
[402273369,1768641061181,-500.0,0.00017273,3]
[402273371,1768641061191,-500.0,0.00017273,3]
[402273373,1768641061200,-500.0,0.00017273,3]
[402273375,1768641061210,-500.0,0.00017273,3]
[402273377,1768641061219,-500.0,0.00017273,3]
[402273379,1768641061229,-500.0,0.00017273,3]
[402273381,1768641061238,-500.0,0.00017273,3]
[402273383,1768641061247,-525.87912065,0.00017273,3]
[402273385,1768641061257,-500.0,0.00017273,3]
[402273387,1768641061267,-500.0,0.00017273,3]
[402273389,1768641061276,-1000.0,0.00017273,2]
[402273391,1768641061286,-500.0,0.00017273,3]
[402273393,1768641061295,-500.0,0.00017273,3]
[402273395,1768641061307,-694.6,0.00017273,3]
[402273397,1768641061317,-506.44158247,0.00017273,3]
[402273399,1768641061326,-1108.81,0.00017273,3]
[402273401,1768641061335,-500.0,0.00017273,3]
[402273403,1768641061345,-500.0,0.00017273,3]
[402273405,1768641061354,-500.0,0.00017273,3]
[402273407,1768641061364,-500.0,0.00017273,3]
[402273409,1768641061373,-500.0,0.00017273,3]
[402273411,1768641061382,-500.0,0.00017273,3]
[402273413,1768641061391,-500.0,0.00017273,3]
[402273415,1768641061400,-694.92,0.00017273,3]
[402273417,1768641061409,-500.0,0.00017273,3]
[402273419,1768641061418,-500.0,0.00017273,3]
[402273421,1768641061427,-500.0,0.00017273,3]
[402273423,1768641061436,-588.41,0.00017273,3]
[402273425,1768641061445,-500.0,0.00017273,3]
[402273427,1768641061454,-817.66,0.00017273,3]
[402273435,1768641061522,-500.0,0.00017273,3]
[402273437,1768641061532,-929.98,0.00017273,3]
[402273439,1768641061542,-980.65,0.00017273,3]
[402273441,1768641061550,-1054.42,0.00017273,3]
[402273443,1768641061559,-1098.82,0.00017273,3]
[402273445,1768641061568,-500.0,0.00017273,3]
[402273447,1768641061577,-500.0,0.00017273,3]
[402273449,1768641061586,-500.0,0.00017273,3]
[402273451,1768641061595,-500.0,0.00017273,3]
[402273453,1768641061604,-574.969696,0.00017273,3]
[402273455,1768641061613,-474.92477012,0.00017273,3]
[402273457,1768641061622,-541.31799653,0.00017273,3]
[402273459,1768641061631,-500.0,0.00017273,3]
[402273461,1768641061640,-216.1398381,0.00017273,3]
[402273463,1768641061649,-500.0,0.00017273,3]
[402273465,1768641061658,-500.0,0.00017273,3]
[402273467,1768641061666,-611.38,0.00017273,3]
[402273469,1768641061675,-523.8,0.00017273,3]
[402273471,1768641061684,-500.0,0.00017273,3]
[402273473,1768641061693,-500.0,0.00017273,3]
[402273475,1768641061703,-500.0,0.00017273,3]
[402273477,1768641061713,-500.0,0.00017273,3]
[402273479,1768641061721,-500.0,0.00017273,3]
[402273481,1768641061730,-500.0,0.00017273,3]
[402273483,1768641061739,-500.0,0.00017273,3]
[402273485,1768641061748,-863.18,0.00017273,3]
[402273487,1768641061756,-1864.45,0.00017273,3]
[402273489,1768641061765,-500.0,0.00017273,3]
[402273491,1768641061774,-500.0,0.00017273,3]
[402273492,1768641061783,-875.55,0.00017273,3]
[402273494,1768641061793,-544.42342876,0.00017273,3]
[402273496,1768641061802,-500.0,0.00017273,3]
[402273498,1768641061811,-500.0,0.00017273,3]
[402273500,1768641061820,-500.0,0.00017273,3]
[402273502,1768641061830,-500.0,0.00017273,3]
[402273505,1768641061843,-503.22,0.00017273,3]
[402273507,1768641061852,-500.0,0.00017273,3]
[402273508,1768641061861,-500.0,0.00017273,3]
[402273510,1768641061870,-500.0,0.00017273,3]
[402273512,1768641061880,-500.0,0.00017273,3]
[402273514,1768641061889,-500.0,0.00017273,3]
[402273516,1768641061898,-500.0,0.00017273,3]
[402273518,1768641061907,-500.0,0.00017273,3]
[402273520,1768641061916,-500.0,0.00017273,3]
[402273522,1768641061925,-500.0,0.00017273,3]
[402273524,1768641061934,-500.0,0.00017273,3]
[402273526,1768641061943,-1777.27,0.00017273,3]
[402273528,1768641061952,-500.0,0.00017273,3]
[402273530,1768641061961,-508.96,0.00017273,3]
[402273532,1768641061970,-500.0,0.00017273,3]
[402273534,1768641061979,-772.16,0.00017273,3]
[402273536,1768641061988,-500.0,0.00017273,3]
[402273538,1768641061996,-523.41303574,0.00017273,3]
[402273539,1768641062006,-395.32581344,0.00017273,3]
[402273541,1768641062016,-529.4766639,0.00017273,3]
[402273543,1768641062025,-500.0,0.00017273,3]
[402273545,1768641062035,-500.0,0.00017273,3]
[402273547,1768641062044,-564.35,0.00017273,3]
[402273549,1768641062053,-1699.56,0.00017273,3]
[402273551,1768641062062,-643.39,0.00017273,3]
[402273553,1768641062071,-785.13,0.00017273,3]
[402273555,1768641062079,-974.97,0.00017273,3]
[402273557,1768641062088,-500.0,0.00017273,3]
[402273559,1768641062098,-500.0,0.00017273,3]
[402273561,1768641062107,-500.0,0.00017273,3]
[402273563,1768641062116,-500.0,0.00017273,3]
[402273565,1768641062126,-964.42,0.00017273,3]
[402273567,1768641062134,-500.0,0.00017273,3]
[402273569,1768641062144,-716.02,0.00017273,3]
[402273571,1768641062153,-999.91,0.00017273,3]
[402273573,1768641062162,-500.0,0.00017273,3]
[402273575,1768641062171,-612.1,0.00017273,3]
[402273577,1768641062180,-530.71,0.00017273,3]
[402273579,1768641062189,-501.5424196,0.00017273,3]
[402273581,1768641062198,-1003.52,0.00017273,3]
[402273583,1768641062207,-565.41,0.00017273,3]
[402273585,1768641062216,-500.0,0.00017273,3]
[402273587,1768641062225,-500.0,0.00017273,3]
[402273589,1768641062234,-302.42547068,0.00017273,3]
[402273590,1768641062243,-979.46,0.00017273,3]
[402273593,1768641062254,-500.0,0.00017273,3]
[402273595,1768641062263,-486.76739107,0.00017273,3]
[402273596,1768641062272,-741.6,0.00017273,3]
[402273598,1768641062282,-904.31,0.00017273,3]
[402273600,1768641062291,-500.0,0.00017273,3]
[402273602,1768641062299,-500.0,0.00017273,3]
[402273604,1768641062308,-538.97966179,0.00017273,3]
[402273606,1768641062318,-1000.0,0.00017273,2]
[402273608,1768641062326,-785.77,0.00017273,3]
[402273610,1768641062335,-500.0,0.00017273,3]
[402273612,1768641062344,-953.58,0.00017273,3]
[402273614,1768641062354,-500.0,0.00017273,3]
[402273616,1768641062363,-557.26,0.00017273,3]
[402273618,1768641062373,-510.56,0.00017273,3]
[402273620,1768641062383,-500.0,0.00017273,3]
[402273622,1768641062392,-500.0,0.00017273,3]
[402273624,1768641062401,-500.0,0.00017273,3]
[402273626,1768641062410,-500.0,0.00017273,3]
[402273628,1768641062419,-500.0,0.00017273,3]
[402273630,1768641062428,-1289.75,0.00017273,3]
[402273632,1768641062436,-1594.46,0.00017273,3]
[402273634,1768641062445,-535.73,0.00017273,3]
[402273636,1768641062454,-500.0,0.00017273,3]
[402273638,1768641062463,-500.0,0.00017273,3]
[402273640,1768641062471,-500.0,0.00017273,3]
[402273642,1768641062480,-500.0,0.00017273,3]
[402273644,1768641062489,-500.0,0.00017273,3]
[402273646,1768641062497,-500.0,0.00017273,3]
[402273648,1768641062506,-500.0,0.00017273,3]
[402273650,1768641062515,-500.0,0.00017273,3]
[402273651,1768641062525,-500.0,0.00017273,3]
[402273653,1768641062534,-500.0,0.00017273,3]
[402273655,1768641062543,-500.0,0.00017273,3]
[402273657,1768641062552,-1572.67,0.00017273,3]
[402273659,1768641062562,-500.0,0.00017273,3]
[402273661,1768641062571,-500.0,0.00017273,3]
[402273663,1768641062580,-500.0,0.00017273,3]
[402273665,1768641062588,-500.0,0.00017273,3]
[402273667,1768641062598,-711.39,0.00017273,3]
[402273669,1768641062607,-500.0,0.00017273,3]
[402273671,1768641062616,-500.0,0.00017273,3]
[402273673,1768641062626,-500.0,0.00017273,3]
[402273675,1768641062635,-500.0,0.00017273,3]
[402273677,1768641062646,-500.0,0.00017273,3]
[402273680,1768641062656,-754.88,0.00017273,3]
[402273682,1768641062665,-567.66,0.00017273,3]
[402273684,1768641062675,-818.82,0.00017273,3]
[402273686,1768641062685,-600.01432001,0.00017273,3]
[402273688,1768641062694,-500.0,0.00017273,3]
[402273690,1768641062703,-500.0,0.00017273,3]
[402273692,1768641062712,-500.0,0.00017273,3]
[402273694,1768641062721,-500.0,0.00017273,3]
[402273696,1768641062731,-500.0,0.00017273,3]
[402273698,1768641062740,-884.9,0.00017273,3]
[402273700,1768641062750,-677.43,0.00017273,3]
[402273701,1768641062761,-943.83,0.00017273,3]
[402273704,1768641062773,-500.0,0.00017273,3]
[402273706,1768641062784,-1038.9,0.00017273,3]
[402273708,1768641062794,-500.0,0.00017273,3]
[402273710,1768641062803,-500.0,0.00017273,3]
[402273711,1768641062813,-500.0,0.00017273,3]
[402273713,1768641062822,-500.0,0.00017273,3]
[402273714,1768641062831,-500.0,0.00017273,3]
[402273716,1768641062845,-500.0,0.00017273,3]
[402273718,1768641062854,-913.08,0.00017273,3]
[402273719,1768641062863,-500.0,0.00017273,3]
[402273721,1768641062872,-500.0,0.00017273,3]
[402273723,1768641062882,-500.0,0.00017273,3]
[402273724,1768641062892,-500.0,0.00017273,3]
[402273726,1768641062901,-1121.7,0.00017273,3]
[402273727,1768641062910,-500.0,0.00017273,3]
[402273729,1768641062920,-744.56,0.00017273,3]
[402273731,1768641062931,-1342.39,0.00017273,3]
[402273733,1768641062940,-500.0,0.00017273,3]
[402273734,1768641062950,-500.0,0.00017273,3]
[402273736,1768641062959,-1834.58,0.00017273,3]
[402273738,1768641062968,-648.04,0.00017273,3]
[402273739,1768641062978,-500.0,0.00017273,3]
[402273741,1768641062986,-500.0,0.00017273,3]
[402273742,1768641062996,-500.0,0.00017273,3]
[402273744,1768641063005,-500.0,0.00017273,3]
[402273745,1768641063014,-500.0,0.00017273,3]
[402273747,1768641063023,-797.95,0.00017273,3]
[402273749,1768641063033,-500.0,0.00017273,3]
[402273750,1768641063043,-500.0,0.00017273,3]
[402273752,1768641063052,-500.0,0.00017273,3]
[402273754,1768641063062,-500.0,0.00017273,3]
[402273755,1768641063071,-500.0,0.00017273,3]
[402273757,1768641063080,-500.0,0.00017273,3]
[402273758,1768641063089,-519.01,0.00017273,3]
[402273760,1768641063099,-500.0,0.00017273,3]
[402273762,1768641063109,-500.0,0.00017273,3]
[402273763,1768641063118,-540.84,0.00017273,3]
[402273765,1768641063127,-500.0,0.00017273,3]
[402273767,1768641063136,-500.0,0.00017273,3]
[402273768,1768641063145,-500.0,0.00017273,3]
[402273770,1768641063155,-392.31626832,0.00017273,3]
[402273772,1768641063164,-500.0,0.00017273,3]
[402273773,1768641063174,-554.44,0.00017273,3]
[402273775,1768641063184,-1359.96,0.00017273,3]
[402273777,1768641063192,-942.63,0.00017273,3]
[402273778,1768641063202,-500.0,0.00017273,3]
[402273780,1768641063211,-500.0,0.00017273,2]
[402273782,1768641063221,-500.0,0.00017273,3]
[402273783,1768641063230,-500.0,0.00017273,3]
[402273785,1768641063240,-500.0,0.00017273,3]
[402273787,1768641063249,-500.0,0.00017273,3]
[402273789,1768641063258,-500.0,0.00017273,3]
[402273790,1768641063267,-693.7,0.00017273,3]
[402273792,1768641063276,-1472.9,0.00017273,3]
[402273794,1768641063285,-500.0,0.00017273,3]
[402273795,1768641063294,-582.22,0.00017273,3]
[402273797,1768641063304,-1568.17,0.00017273,3]
[402273799,1768641063313,-500.0,0.00017273,3]
[402273800,1768641063322,-500.0,0.00017273,3]
[402273802,1768641063332,-500.0,0.00017273,3]
[402273804,1768641063341,-500.0,0.00017273,3]
[402273806,1768641063351,-500.0,0.00017273,3]
[402273807,1768641063360,-500.0,0.00017273,3]
[402273809,1768641063369,-500.0,0.00017273,3]
[402273811,1768641063378,-500.0,0.00017273,3]
[402273813,1768641063387,-500.0,0.00017273,3]
[402273814,1768641063396,-781.61,0.00017273,3]
[402273816,1768641063405,-500.0,0.00017273,3]
[402273818,1768641063414,-500.0,0.00017273,3]
[402273819,1768641063423,-931.1,0.00017273,3]
[402273821,1768641063433,-628.44,0.00017273,3]
[402273823,1768641063442,-500.0,0.00017273,3]
[402273825,1768641063452,-842.12,0.00017273,3]
[402273826,1768641063461,-1251.31,0.00017273,3]
[402273828,1768641063470,-500.0,0.00017273,3]
[402273830,1768641063479,-500.0,0.00017273,3]
[402273831,1768641063488,-7017.22377161,0.00017398,2]
[402273833,1768641063497,-520.22,0.00017534,3]
[402273835,1768641063506,-818.49,0.00017534,3]
[402273836,1768641063516,-977.67,0.00017534,3]
[402273838,1768641063525,-727.95,0.00017534,3]
[402273840,1768641063534,-619.01,0.00017534,3]
[402273841,1768641063543,-500.0,0.00017534,3]
[402273843,1768641063552,-500.0,0.00017534,3]
[402273845,1768641063561,-500.0,0.00017534,3]
[402273847,1768641063570,-500.0,0.00017534,3]
[402273848,1768641063579,-500.0,0.00017534,3]
[402273850,1768641063589,-511.95572068,0.00017534,3]
[402273852,1768641063598,-500.0,0.00017534,3]
[402273854,1768641063607,-944.2,0.00017534,3]
[402273855,1768641063615,-774.73,0.00017534,3]
[402273857,1768641063625,-630.85,0.00017534,3]
[402273859,1768641063634,-1581.13,0.00017534,3]
[402273860,1768641063643,-500.0,0.00017534,3]
[402273862,1768641063652,-375.27196908,0.00017534,3]
[402273864,1768641063660,-434.32561302,0.00017534,3]
[402273866,1768641063670,-771.05,0.00017534,3]
[402273867,1768641063679,-456.1033492,0.00017534,2]
[402273869,1768641063688,-500.0,0.00017534,3]
[402273871,1768641063697,-1076.17,0.00017534,3]
[402273873,1768641063707,-523.35,0.00017534,3]
[402273874,1768641063715,-1132.82,0.00017534,3]
[402273876,1768641063724,-563.8,0.00017534,3]
[402273878,1768641063733,-500.0,0.00017534,3]
[402273880,1768641063743,-500.0,0.00017534,3]
[402273881,1768641063753,-1366.17,0.00017534,3]
[402273883,1768641063762,-535.22,0.00017534,3]
[402273885,1768641063771,-626.22,0.00017534,3]
[402273887,1768641063780,-598.93,0.00017534,3]
[402273888,1768641063789,-500.0,0.00017534,3]
[402273890,1768641063798,-500.0,0.00017534,3]
[402273891,1768641063807,-500.0,0.00017534,3]
[402273893,1768641063816,-500.0,0.00017534,3]
[402273895,1768641063826,-1016.59,0.00017534,3]
[402273896,1768641063835,-500.0,0.00017534,3]
[402273898,1768641063844,-1254.59,0.00017534,3]
[402273900,1768641063853,-500.0,0.00017534,2]
[402273902,1768641063862,-500.0,0.00017534,2]
[402273903,1768641063871,-500.0,0.00017534,3]
[402273905,1768641063880,-2006.9,0.00017534,3]
[402273907,1768641063889,-536.25086162,0.00017534,3]
[402273908,1768641063899,-500.0,0.00017534,3]
[402273910,1768641063909,-500.0,0.00017534,3]
[402273912,1768641063918,-500.0,0.00017534,3]
[402273913,1768641063928,-500.0,0.00017534,3]
[402273915,1768641063937,-500.0,0.00017534,3]
[402273917,1768641063946,-500.0,0.00017534,3]
[402273919,1768641063955,-500.0,0.00017534,3]
[402273920,1768641063964,-500.0,0.00017534,3]
[402273922,1768641063975,-500.0,0.00017534,3]
[402273924,1768641063984,-500.0,0.00017534,3]
[402273926,1768641063993,-2338.27,0.00017534,3]
[402273927,1768641064003,-500.0,0.00017534,3]
[402273929,1768641064013,-939.95,0.00017534,3]
[402273931,1768641064022,-1016.13,0.00017534,3]
[402273933,1768641064032,-500.0,0.00017534,3]
[402273934,1768641064041,-587.21,0.00017534,3]
[402273936,1768641064051,-500.0,0.00017534,3]
[402273938,1768641064060,-1859.94,0.00017534,3]
[402273939,1768641064069,-611.98339815,0.00017534,3]
[402273942,1768641064087,-500.0,0.00017534,3]
[402273944,1768641064100,-816.49,0.00017534,3]
[402273946,1768641064111,-500.0,0.00017534,3]
[402273947,1768641064122,-500.0,0.00017534,3]
[402273949,1768641064132,-500.0,0.00017534,3]
[402273950,1768641064141,-500.0,0.00017534,3]
[402273952,1768641064151,-1586.94,0.00017534,3]
[402273954,1768641064160,-500.0,0.00017534,3]
[402273956,1768641064169,-500.0,0.00017534,3]
[402273957,1768641064178,-500.0,0.00017534,3]
[402273959,1768641064188,-1210.81,0.00017534,3]
[402273961,1768641064198,-775.14,0.00017534,3]
[402273963,1768641064207,-960.56,0.00017534,3]
[402273964,1768641064217,-500.0,0.00017534,3]
[402273966,1768641064226,-1441.58,0.00017534,3]
[402273968,1768641064236,-500.0,0.00017534,3]
[402273970,1768641064245,-500.0,0.00017534,3]